fUSD/lending_fUSD_20240119
["ID","MTS","AMOUNT","RATE_DAILY","PERIOD"]
[312200307,1705684329506,-934.67,0.00025205,2]
[312200308,1705684329516,-1287.97,0.00025205,2]
[312200309,1705684329525,-1004.82,0.00025205,2]
[312200310,1705684329538,-500.0,0.00025205,2]
[312200311,1705684329550,-718.68,0.00025205,2]
[312200312,1705684329559,-500.0,0.00025205,2]
[312200313,1705684329569,-155.44,0.00025205,2]
[312200314,1705684329579,-2888.65,0.00025205,2]
[312200315,1705684329590,-751.55,0.00025205,2]
[312200316,1705684329600,-767.72,0.00025205,2]
[312200317,1705684329609,-500.0,0.00025205,2]
[312200318,1705684329618,-500.0,0.00025205,2]
[312200319,1705684329627,-553.54,0.00025205,2]
[312200320,1705684329636,-1564.8,0.00025205,2]
[312200321,1705684329645,-2087.23,0.00025205,2]
[312200322,1705684329655,-635.0,0.00025205,2]
[312200323,1705684329664,-779.44,0.00025205,2]
[312200324,1705684329672,-692.16,0.00025205,2]
[312200325,1705684329681,-776.21,0.00025205,2]
[312200326,1705684329692,-801.0,0.00025205,2]
[312200327,1705684329701,-2489.47,0.00025205,2]
[312200328,1705684329710,-1305.59,0.00025205,2]
[312200329,1705684329719,-500.0,0.00025205,2]
[312200330,1705684329729,-540.08,0.00025205,2]
[312200331,1705684329739,-657.66,0.00025205,2]
[312200332,1705684329748,-3922.54,0.00025205,2]
[312200333,1705684329758,-500.0,0.00025205,2]
[312200334,1705684329768,-559.20126592,0.00025205,2]
[312200335,1705684329779,-500.0,0.00025205,2]
[312200336,1705684329792,-1067.45,0.00025205,5]
[312200337,1705684329802,-500.0,0.00025205,2]
[312200338,1705684329812,-574.27,0.00025205,2]
[312200339,1705684329822,-2247.96,0.00025205,2]
[312200340,1705684329831,-4625.17,0.00025205,2]
[312200341,1705684329841,-500.0,0.00025205,2]
[312200342,1705684329851,-2955.88,0.00025205,2]
[312200343,1705684329860,-500.0,0.00025205,2]
[312200344,1705684329869,-500.0,0.00025205,2]
[312200345,1705684329879,-792.41,0.00025205,2]
[312200346,1705684329888,-500.0,0.00025205,2]
[312200347,1705684329898,-3375.04,0.00025205,2]
[312200348,1705684329907,-1482.95,0.00025205,2]
[312200349,1705684329916,-1145.18,0.00025205,2]
[312200350,1705684329927,-3968.6,0.00025205,2]
[312200351,1705684329938,-642.03,0.00025205,2]
[312200352,1705684329948,-759.02,0.00025205,2]
[312200353,1705684329957,-519.9,0.00025205,2]
[312200354,1705684329967,-1025.72,0.00025205,2]
[312200355,1705684329977,-2480.63,0.00025205,2]
[312200356,1705684329986,-733.85,0.00025205,2]
[312200357,1705684329996,-3098.92,0.00025205,2]
[312200358,1705684330006,-500.0,0.00025205,2]
[312200359,1705684330015,-6021.86,0.00025205,2]
[312200360,1705684330025,-753.94,0.00025205,2]
[312200361,1705684330037,-500.0,0.00025205,2]
[312200362,1705684330049,-500.0,0.00025205,2]
[312200363,1705684330058,-978.79,0.00025205,2]
[312200364,1705684330067,-4921.79,0.00025205,2]
[312200365,1705684330078,-8646.25,0.00025205,2]
[312200366,1705684330090,-682.8,0.00025205,2]
[312200367,1705684330099,-500.0,0.00025205,2]
[312200368,1705684330108,-1163.38,0.00025205,2]
[312200369,1705684330117,-500.0,0.00025205,2]
[312200370,1705684330126,-500.0,0.00025205,2]
[312200371,1705684330136,-2479.77,0.00025205,2]
[312200372,1705684330145,-805.35,0.00025205,2]
[312200373,1705684330155,-500.0,0.00025205,2]
[312200374,1705684330164,-1096.89,0.00025205,2]
[312200375,1705684330177,-846.06,0.00025205,2]
[312200376,1705684330186,-522.24,0.00025205,2]
[312200377,1705684330197,-1247.86,0.00025205,2]
[312200378,1705684330208,-1521.64,0.00025205,2]
[312200379,1705684330218,-810.2,0.00025205,2]
[312200380,1705684330228,-1270.75,0.00025205,2]
[312200381,1705684330238,-500.0,0.00025205,2]
[312200382,1705684330247,-648.61,0.00025205,2]
[312200383,1705684330257,-1158.73,0.00025205,2]
[312200384,1705684330266,-1375.2,0.00025205,2]
[312200385,1705684330276,-17751.82,0.00025205,2]
[312200386,1705684330287,-500.0,0.00025205,2]
[312200387,1705684330297,-503.19,0.00025205,2]
[312200388,1705684330306,-1097.0,0.00025205,2]
[312200389,1705684330316,-1690.88,0.00025205,2]
[312200390,1705684330326,-1798.17,0.00025205,2]
[312200391,1705684330335,-662.05,0.00025205,2]
[312200392,1705684330345,-500.0,0.00025205,2]
[312200393,1705684330355,-820.42,0.00025205,2]
[312200394,1705684330364,-1315.74,0.00025205,2]
[312200395,1705684330373,-2334.22,0.00025205,2]
[312200396,1705684330382,-500.0,0.00025205,2]
[312200397,1705684330393,-918.43,0.00025205,2]
[312200398,1705684330403,-1931.87,0.00025205,2]
[312200399,1705684330413,-2683.86,0.00025205,2]
[312200400,1705684330423,-759.51,0.00025205,2]
[312200401,1705684330433,-1614.07,0.00025205,2]
[312200402,1705684330444,-4770.94,0.00025205,2]
[312200403,1705684330454,-1303.95,0.00025205,2]
[312200404,1705684330464,-658.2,0.00025205,2]
[312200405,1705684330473,-500.0,0.00025205,2]
[312200406,1705684330484,-500.0,0.00025205,2]
[312200407,1705684330494,-500.0,0.00025205,2]
[312200408,1705684330504,-500.0,0.00025205,2]
[312200409,1705684330514,-8690.7,0.00025205,2]
[312200410,1705684330525,-695.99,0.00025205,2]
[312200411,1705684330539,-6873.67,0.00025205,2]
[312200412,1705684330549,-500.0,0.00025205,2]
[312200413,1705684330558,-735.29,0.00025205,2]
[312200414,1705684330568,-519.42,0.00025205,2]
[312200415,1705684330578,-1295.46,0.00025205,2]
[312200416,1705684330588,-1149.53,0.00025205,2]
[312200417,1705684330598,-870.11,0.00025205,2]
[312200418,1705684330609,-500.0,0.00025205,2]
[312200419,1705684330619,-1617.17,0.00025205,2]
[312200420,1705684330629,-500.0,0.00025205,2]
[312200421,1705684330639,-753.21,0.00025205,2]
[312200422,1705684330649,-982.23,0.00025205,2]
[312200423,1705684330658,-763.08,0.00025205,2]
[312200424,1705684330668,-1344.83,0.00025205,2]
[312200425,1705684330678,-569.27,0.00025205,2]
[312200426,1705684330687,-597.5,0.00025205,2]
[312200427,1705684330697,-512.26,0.00025205,2]
[312200428,1705684330707,-742.83,0.00025205,2]
[312200429,1705684330717,-500.0,0.00025205,2]
[312200430,1705684330728,-2112.76,0.00025205,2]
[312200431,1705684330739,-1184.32,0.00025205,2]
[312200432,1705684330749,-500.0,0.00025205,2]
[312200433,1705684330759,-4987.06,0.00025205,2]
[312200434,1705684330769,-500.0,0.00025205,2]
[312200435,1705684330778,-2960.59,0.00025205,2]
[312200436,1705684330789,-15338.55,0.00025205,2]
[312200437,1705684330799,-500.0,0.00025205,2]
[312200438,1705684330808,-594.36,0.00025205,2]
[312200439,1705684330818,-500.0,0.00025205,2]
[312200440,1705684330827,-500.0,0.00025205,2]
[312200441,1705684330837,-2166.93,0.00025205,2]
[312200442,1705684330846,-2307.01,0.00025205,2]
[312200443,1705684330857,-500.0,0.00025205,2]
[312200444,1705684330867,-1238.0,0.00025205,2]
[312200445,1705684330876,-582.28,0.00025205,2]
[312200446,1705684330886,-1682.88,0.00025205,2]
[312200447,1705684330896,-861.16,0.00025205,2]
[312200448,1705684330906,-970.11,0.00025205,2]
[312200449,1705684330915,-1309.07,0.00025205,2]
[312200450,1705684330925,-687.38,0.00025205,2]
[312200451,1705684330934,-500.0,0.00025205,2]
[312200452,1705684330944,-500.0,0.00025205,2]
[312200453,1705684330954,-966.15,0.00025205,2]
[312200454,1705684330964,-1452.73,0.00025205,2]
[312200455,1705684330973,-543.77,0.00025205,2]
[312200456,1705684330983,-687.66,0.00025205,2]
[312200457,1705684330993,-789.87,0.00025205,2]
[312200458,1705684331003,-1600.24,0.00025205,2]
[312200459,1705684331013,-580.5,0.00025205,2]
[312200460,1705684331022,-724.98,0.00025205,2]
[312200461,1705684331031,-566.64,0.00025205,2]
[312200462,1705684331044,-500.0,0.00025205,2]
[312200463,1705684331058,-500.0,0.00025205,2]
[312200464,1705684331068,-570.73999364,0.00025205,2]
[312200465,1705684331077,-2353.38,0.00025205,2]
[312200466,1705684331087,-500.0,0.00025205,2]
[312200467,1705684331099,-1472.8,0.00025205,2]
[312200468,1705684331109,-500.0,0.00025205,2]
[312200469,1705684331118,-982.82,0.00025205,2]
[312200470,1705684331128,-1029.65,0.00025205,2]
[312200471,1705684331140,-500.0,0.00025205,2]
[312200472,1705684331150,-1034.15,0.00025205,2]
[312200473,1705684331161,-500.0,0.00025205,2]
[312200474,1705684331173,-1105.06,0.00025205,2]
[312200475,1705684331183,-511.82,0.00025205,2]
[312200476,1705684331193,-2707.99,0.00025205,2]
[312200477,1705684331203,-1045.7,0.00025205,2]
[312200478,1705684331212,-1777.84,0.00025205,2]
[312200479,1705684331222,-536.83,0.00025205,2]
[312200480,1705684331232,-10382.29,0.00025205,2]
[312200481,1705684331242,-1339.3,0.00025205,2]
[312200482,1705684331251,-500.0,0.00025205,2]
[312200483,1705684331262,-907.28,0.00025205,2]
[312200484,1705684331271,-1150.48,0.00025205,2]
[312200485,1705684331281,-3979.15,0.00025205,2]
[312200486,1705684331294,-1514.36,0.00025205,2]
[312200487,1705684331304,-524.59,0.00025205,2]
[312200488,1705684331315,-778.28,0.00025205,2]
[312200489,1705684331327,-500.0,0.00025205,2]
[312200490,1705684331338,-5877.42,0.00025205,2]
[312200491,1705684331348,-848.6,0.00025205,2]
[312200492,1705684331360,-635.87,0.00025205,2]
[312200493,1705684331371,-733.77,0.00025205,2]
[312200494,1705684331381,-963.32,0.00025205,2]
[312200495,1705684331393,-2258.64,0.00025205,2]
[312200496,1705684331404,-500.0,0.00025205,2]
[312200497,1705684331414,-689.61,0.00025205,2]
[312200498,1705684331424,-3018.83,0.00025205,2]
[312200499,1705684331435,-649.04,0.00025205,2]
[312200500,1705684331445,-500.0,0.00025205,2]
[312200501,1705684331454,-3000.0,0.0002521,2]
[312200502,1705684331463,-3000.0,0.0002522,2]
[312200503,1705684331473,-3000.0,0.0002523,2]
[312200504,1705684331482,-3000.0,0.0002524,2]
[312200505,1705684331492,-3000.0,0.0002525,2]
[312200506,1705684331502,-3000.0,0.0002526,2]
[312200507,1705684331513,-3000.0,0.0002527,2]
[312200508,1705684331523,-3000.0,0.0002528,2]
[312200509,1705684331533,-3000.0,0.0002529,2]
[312200510,1705684331545,-154.0,0.000253,2]
[312200511,1705684331556,-3000.0,0.000253,2]
[312200512,1705684331567,-160.21,0.00025305,2]
[312200513,1705684331577,-4641.259805,0.0002531,2]
[312200514,1705684331587,-158.68816156,0.00025478,2]
[312200515,1705684331596,-151.0,0.00025479,7]
[312200516,1705684331607,-245.956193,0.00025479,7]
[312200517,1705684331618,-151.0,0.00025479,7]
[312200518,1705684331627,-372.983671,0.00025479,7]
[312200519,1705684331636,-372.983674,0.00025479,7]
[312200520,1705684331646,-210.85067,0.00025479,7]
[312200521,1705684331656,-622.14,0.00025479,2]
[312200522,1705684331666,-260.81348859,0.00025479,2]
[312200523,1705684331675,-500.0,0.00025479,2]
[312200524,1705684331685,-500.0,0.00025479,2]
[312200525,1705684331695,-542.14,0.00025479,2]
[312200526,1705684331704,-500.0,0.00025479,2]
[312200527,1705684331714,-500.0,0.00025479,2]
[312200528,1705684331724,-194.08376202,0.00025479,2]
[312200529,1705684331734,-426.24980415,0.00025479,2]
[312200530,1705684331743,-542.59,0.00025479,2]
[312200531,1705684331754,-500.0,0.00025479,2]
[312200532,1705684331763,-730.0,0.00025479,2]
[312200533,1705684331773,-528.39,0.00025479,2]
[312200534,1705684331783,-542.09,0.00025479,2]
[312200535,1705684331794,-500.0,0.00025479,2]
[312200536,1705684331805,-500.0,0.00025479,2]
[312200537,1705684331814,-676.04,0.00025479,2]
[312200538,1705684331824,-500.0,0.00025479,2]
[312200539,1705684331834,-808.53,0.00025479,2]
[312200540,1705684331843,-544.1,0.00025479,2]
[312200541,1705684331853,-190.09420034,0.00025479,2]
[312200542,1705684331862,-500.0,0.00025479,2]
[312200543,1705684331872,-513.9,0.00025479,2]
[312200544,1705684331881,-807.4,0.00025479,2]
[312200545,1705684331892,-500.0,0.00025479,2]
[312200546,1705684331901,-500.0,0.00025479,2]
[312200547,1705684331912,-245.37545997,0.00025479,2]
[312200548,1705684331921,-1752.26,0.00025479,2]
[312200549,1705684331931,-565.26,0.00025479,2]
[312200550,1705684332142,-500.0,0.00025479,2]
[312200551,1705684332152,-500.0,0.00025479,2]
[312200552,1705684332162,-500.0,0.00025479,2]
[312200553,1705684332172,-638.62,0.00025479,2]
[312200554,1705684332182,-538.66558717,0.00025479,2]
[312200555,1705684332192,-500.0,0.00025479,2]
[312200556,1705684332202,-702.27,0.00025479,2]
[312200557,1705684332212,-546.25,0.00025479,2]
[312200558,1705684332221,-500.0,0.00025479,2]
[312200559,1705684332232,-625.36,0.00025479,2]
[312200560,1705684332242,-500.0,0.00025479,2]
[312200561,1705684332251,-500.0,0.00025479,2]
[312200562,1705684332260,-500.0,0.00025479,2]
[312200563,1705684332270,-1045.91,0.00025479,2]
[312200564,1705684332280,-500.0,0.00025479,2]
[312200565,1705684332293,-615.78,0.00025479,2]
[312200566,1705684332305,-546.84,0.00025479,2]
[312200567,1705684332315,-884.67,0.00025479,2]
[312200568,1705684332326,-679.98,0.00025479,2]
[312200569,1705684332337,-500.0,0.00025479,2]
[312200570,1705684332346,-602.03,0.00025479,2]
[312200571,1705684332356,-500.0,0.00025479,2]
[312200572,1705684332365,-500.0,0.00025479,2]
[312200573,1705684332376,-1736.83,0.00025479,2]
[312200574,1705684332387,-715.58,0.00025479,2]
[312200575,1705684332396,-500.0,0.00025479,2]
[312200576,1705684332406,-648.18,0.00025479,2]
[312200577,1705684332415,-582.03,0.00025479,2]
[312200578,1705684332424,-500.0,0.00025479,2]
[312200579,1705684332433,-581.09,0.00025479,2]
[312200580,1705684332442,-588.13,0.00025479,2]
[312200581,1705684332452,-800.73,0.00025479,2]
[312200582,1705684332462,-524.92,0.00025479,2]
[312200583,1705684332472,-500.0,0.00025479,2]
[312200584,1705684332482,-729.35,0.00025479,2]
[312200585,1705684332492,-798.17,0.00025479,2]
[312200586,1705684332502,-510.07,0.00025479,2]
[312200587,1705684332511,-594.92,0.00025479,2]
[312200588,1705684332521,-421.63520082,0.00025479,2]
[312200589,1705684332530,-789.92,0.00025479,2]
[312200590,1705684332542,-500.0,0.00025479,2]
[312200591,1705684332551,-500.0,0.00025479,2]
[312200592,1705684332561,-500.0,0.00025479,2]
[312200593,1705684332570,-500.0,0.00025479,2]
[312200594,1705684332580,-547.54,0.00025479,2]
[312200595,1705684332590,-500.0,0.00025479,2]
[312200596,1705684332600,-500.0,0.00025479,2]
[312200597,1705684332611,-500.0,0.00025479,2]
[312200598,1705684332620,-836.55,0.00025479,2]
[312200599,1705684332630,-613.85,0.00025479,2]
[312200600,1705684332641,-563.98,0.00025479,2]
[312200601,1705684332651,-500.0,0.00025479,2]
[312200602,1705684332661,-471.03533421,0.00025479,2]
[312200603,1705684332670,-1354.55,0.00025479,2]
[312200604,1705684332680,-500.0,0.00025479,2]
[312200605,1705684332690,-228.92437217,0.00025479,2]
[312200606,1705684332700,-661.22,0.00025479,2]
[312200607,1705684332709,-500.0,0.00025479,2]
[312200608,1705684332719,-500.0,0.00025479,2]
[312200609,1705684332728,-521.39,0.00025479,2]
[312200610,1705684332737,-649.06,0.00025479,2]
[312200611,1705684332748,-942.15,0.00025479,2]
[312200612,1705684332757,-500.0,0.00025479,2]
[312200613,1705684332767,-500.0,0.00025479,2]
[312200614,1705684332776,-665.24,0.00025479,2]
[312200615,1705684332788,-509.47,0.00025479,2]
[312200616,1705684332798,-567.16,0.00025479,2]
[312200617,1705684332807,-500.0,0.00025479,2]
[312200618,1705684332817,-587.72,0.00025479,2]
[312200619,1705684332827,-609.03,0.00025479,2]
[312200620,1705684332836,-738.2,0.00025479,2]
[312200621,1705684332846,-673.09,0.00025479,2]
[312200622,1705684332855,-1257.45,0.00025479,2]
[312200623,1705684332865,-673.79,0.00025479,2]
[312200624,1705684332875,-624.73,0.00025479,2]
[312200625,1705684332884,-518.0,0.00025479,2]
[312200626,1705684332893,-500.0,0.00025479,2]
[312200627,1705684332903,-634.3,0.00025479,2]
[312200628,1705684332914,-500.0,0.00025479,2]
[312200629,1705684332923,-500.0,0.00025479,2]
[312200630,1705684332933,-500.0,0.00025479,2]
[312200631,1705684332943,-500.0,0.00025479,2]
[312200632,1705684332953,-821.92,0.00025479,2]
[312200633,1705684332964,-500.0,0.00025479,2]
[312200634,1705684332974,-500.0,0.00025479,2]
[312200635,1705684332984,-673.61,0.00025479,2]
[312200636,1705684332994,-500.0,0.00025479,2]
[312200637,1705684333005,-522.51,0.00025479,2]
[312200638,1705684333015,-543.84,0.00025479,2]
[312200639,1705684333025,-799.17,0.00025479,2]
[312200640,1705684333036,-862.29,0.00025479,2]
[312200641,1705684333049,-539.84,0.00025479,2]
[312200642,1705684333059,-903.19,0.00025479,2]
[312200643,1705684333068,-720.59,0.00025479,2]
[312200644,1705684333077,-790.36,0.00025479,2]
[312200645,1705684333086,-500.0,0.00025479,2]
[312200646,1705684333101,-500.0,0.00025479,2]
[312200647,1705684333111,-934.67,0.00025479,2]
[312200648,1705684333120,-1287.97,0.00025479,2]
[312200649,1705684333130,-500.0,0.00025479,2]
[312200650,1705684333141,-1004.82,0.00025479,2]
[312200651,1705684333150,-718.68,0.00025479,2]
[312200652,1705684333160,-500.0,0.00025479,2]
[312200653,1705684333170,-155.44,0.00025479,2]
[312200654,1705684333180,-2888.65,0.00025479,2]
[312200655,1705684333190,-767.72,0.00025479,2]
[312200656,1705684333200,-751.55,0.00025479,2]
[312200657,1705684333210,-500.0,0.00025479,2]
[312200658,1705684333219,-500.0,0.00025479,2]
[312200659,1705684333229,-553.54,0.00025479,2]
[312200660,1705684333239,-1564.8,0.00025479,2]
[312200661,1705684333249,-2087.23,0.00025479,2]
[312200662,1705684333259,-635.0,0.00025479,2]
[312200663,1705684333269,-779.44,0.00025479,2]
[312200664,1705684333279,-692.16,0.00025479,2]
[312200665,1705684333291,-776.21,0.00025479,2]
[312200666,1705684333301,-801.0,0.00025479,2]
[312200667,1705684333310,-2489.47,0.00025479,2]
[312200668,1705684333319,-329.24474263,0.00025479,2]
[312200669,1705684333328,-1305.59,0.00025479,2]
[312200670,1705684333337,-540.08,0.00025479,2]
[312200671,1705684333347,-657.66,0.00025479,2]
[312200672,1705684333356,-3922.54,0.00025479,2]
[312200673,1705684333366,-500.0,0.00025479,2]
[312200674,1705684333375,-500.0,0.00025479,2]
[312200675,1705684333384,-1067.45,0.00025479,5]
[312200676,1705684333394,-500.0,0.00025479,2]
[312200677,1705684333403,-574.27,0.00025479,2]
[312200678,1705684333413,-2247.96,0.00025479,2]
[312200679,1705684333423,-4625.17,0.00025479,2]
[312200680,1705684333432,-500.0,0.00025479,2]
[312200681,1705684333442,-2955.88,0.00025479,2]
[312200682,1705684333451,-500.0,0.00025479,2]
[312200683,1705684333461,-500.0,0.00025479,2]
[312200684,1705684333470,-792.41,0.00025479,2]
[312200685,1705684333479,-500.0,0.00025479,2]
[312200686,1705684333488,-3375.04,0.00025479,2]
[312200687,1705684333498,-1145.18,0.00025479,2]
[312200688,1705684333507,-1482.95,0.00025479,2]
[312200689,1705684333516,-3968.6,0.00025479,2]
[312200690,1705684333526,-642.03,0.00025479,2]
[312200691,1705684333536,-759.02,0.00025479,2]
[312200692,1705684333545,-519.9,0.00025479,2]
[312200693,1705684333554,-1025.72,0.00025479,2]
[312200694,1705684333563,-2480.63,0.00025479,2]
[312200695,1705684333572,-733.85,0.00025479,2]
[312200696,1705684333581,-3098.92,0.00025479,2]
[312200697,1705684333590,-500.0,0.00025479,2]
[312200698,1705684333599,-6021.86,0.00025479,2]
[312200699,1705684333609,-753.94,0.00025479,2]
[312200700,1705684333618,-500.0,0.00025479,2]
[312200701,1705684333627,-500.0,0.00025479,2]
[312200702,1705684333637,-978.79,0.00025479,2]
[312200703,1705684333646,-4921.79,0.00025479,2]
[312200704,1705684333655,-8646.25,0.00025479,2]
[312200705,1705684333664,-682.8,0.00025479,2]
[312200706,1705684333673,-1163.38,0.00025479,2]
[312200707,1705684333682,-387.4826823,0.00025479,2]
[312200708,1705684333691,-500.0,0.00025479,2]
[312200709,1705684333699,-500.0,0.00025479,2]
[312200710,1705684333709,-2479.77,0.00025479,2]
[312200711,1705684333718,-805.35,0.00025479,2]
[312200712,1705684333727,-500.0,0.00025479,2]
[312200713,1705684333737,-1096.89,0.00025479,2]
[312200714,1705684333747,-846.06,0.00025479,2]
[312200715,1705684333756,-522.24,0.00025479,2]
[312200716,1705684333766,-1247.86,0.00025479,2]
[312200717,1705684333776,-1521.64,0.00025479,2]
[312200718,1705684333787,-810.2,0.00025479,2]
[312200719,1705684333797,-1270.75,0.00025479,2]
[312200720,1705684333807,-500.0,0.00025479,2]
[312200721,1705684333816,-648.61,0.00025479,2]
[312200722,1705684333826,-1158.73,0.00025479,2]
[312200723,1705684333835,-1375.2,0.00025479,2]
[312200724,1705684333845,-17751.82,0.00025479,2]
[312200725,1705684333855,-194.33683982,0.00025479,2]
[312200726,1705684333865,-503.19,0.00025479,2]
[312200727,1705684333875,-1097.0,0.00025479,2]
[312200728,1705684333885,-1690.88,0.00025479,2]
[312200729,1705684333895,-1798.17,0.00025479,2]
[312200730,1705684333904,-662.05,0.00025479,2]
[312200731,1705684333913,-500.0,0.00025479,2]
[312200732,1705684333923,-820.42,0.00025479,2]
[312200733,1705684333932,-1315.74,0.00025479,2]
[312200734,1705684333941,-2334.22,0.00025479,2]
[312200735,1705684333950,-500.0,0.00025479,2]
[312200736,1705684333960,-918.43,0.00025479,2]
[312200737,1705684333970,-1931.87,0.00025479,2]
[312200738,1705684333979,-2683.86,0.00025479,2]
[312200739,1705684333989,-759.51,0.00025479,2]
[312200740,1705684333999,-1614.07,0.00025479,2]
[312200741,1705684334009,-4770.94,0.00025479,2]
[312200742,1705684334018,-1303.95,0.00025479,2]
[312200743,1705684334027,-658.2,0.00025479,2]
[312200744,1705684334037,-500.0,0.00025479,2]
[312200745,1705684334046,-500.0,0.00025479,2]
[312200746,1705684334057,-500.0,0.00025479,2]
[312200747,1705684334067,-500.0,0.00025479,2]
[312200748,1705684334077,-695.99,0.00025479,2]
[312200749,1705684334087,-6873.67,0.00025479,2]
[312200750,1705684334101,-8690.7,0.00025479,2]
[312200751,1705684334110,-735.29,0.00025479,2]
[312200752,1705684334119,-500.0,0.00025479,2]
[312200753,1705684334129,-519.42,0.00025479,2]
[312200754,1705684334139,-1295.46,0.00025479,2]
[312200755,1705684334149,-1149.53,0.00025479,2]
[312200756,1705684334158,-870.11,0.00025479,2]
[312200757,1705684334170,-500.0,0.00025479,2]
[312200758,1705684334180,-1617.17,0.00025479,2]
[312200759,1705684334190,-500.0,0.00025479,2]
[312200760,1705684334199,-753.21,0.00025479,2]
[312200761,1705684334208,-982.23,0.00025479,2]
[312200762,1705684334217,-763.08,0.00025479,2]
[312200763,1705684334227,-1344.83,0.00025479,2]
[312200764,1705684334236,-597.5,0.00025479,2]
[312200765,1705684334245,-569.27,0.00025479,2]
[312200766,1705684334255,-512.26,0.00025479,2]
[312200767,1705684334266,-742.83,0.00025479,2]
[312200768,1705684334275,-500.0,0.00025479,2]
[312200769,1705684334284,-2112.76,0.00025479,2]
[312200770,1705684334294,-1184.32,0.00025479,2]
[312200771,1705684334303,-500.0,0.00025479,2]
[312200772,1705684334313,-4987.06,0.00025479,2]
[312200773,1705684334322,-500.0,0.00025479,2]
[312200774,1705684334332,-2960.59,0.00025479,2]
[312200775,1705684334342,-15338.55,0.00025479,2]
[312200776,1705684334351,-500.0,0.00025479,2]
[312200777,1705684334360,-594.36,0.00025479,2]
[312200778,1705684334369,-500.0,0.00025479,2]
[312200779,1705684334378,-2166.93,0.00025479,2]
[312200780,1705684334387,-500.0,0.00025479,2]
[312200781,1705684334396,-2307.01,0.00025479,2]
[312200782,1705684334406,-500.0,0.00025479,2]
[312200783,1705684334415,-1238.0,0.00025479,2]
[312200784,1705684334424,-582.28,0.00025479,2]
[312200785,1705684334434,-1682.88,0.00025479,2]
[312200786,1705684334443,-861.16,0.00025479,2]
[312200787,1705684334452,-970.11,0.00025479,2]
[312200788,1705684334461,-1309.07,0.00025479,2]
[312200789,1705684334474,-687.38,0.00025479,2]
[312200790,1705684334485,-500.0,0.00025479,2]
[312200791,1705684334496,-500.0,0.00025479,2]
[312200792,1705684334507,-966.15,0.00025479,2]
[312200793,1705684334517,-1452.73,0.00025479,2]
[312200794,1705684334526,-543.77,0.00025479,2]
[312200795,1705684334538,-687.66,0.00025479,2]
[312200796,1705684334547,-789.87,0.00025479,2]
[312200797,1705684334556,-1600.24,0.00025479,2]
[312200798,1705684334636,-580.5,0.00025479,2]
[312200799,1705684334645,-724.98,0.00025479,2]
[312200800,1705684334654,-566.64,0.00025479,2]
[312200801,1705684334663,-500.0,0.00025479,2]
[312200802,1705684334673,-500.0,0.00025479,2]
[312200803,1705684334682,-2353.38,0.00025479,2]
[312200804,1705684334691,-1472.8,0.00025479,2]
[312200805,1705684334700,-500.0,0.00025479,2]
[312200806,1705684334710,-500.0,0.00025479,2]